fUSD/lending_fUSD_20250112
["ID","MTS","AMOUNT","RATE_DAILY","PERIOD"]
[348687345,1736716252810,-1421.6,0.00011368,2]
[348687346,1736716252819,-2031.45,0.00011368,2]
[348687347,1736716252828,-3914.3,0.00011368,2]
[348687348,1736716252839,-827.37,0.00011368,2]
[348687349,1736716252850,-634.33,0.00011369,2]
[348687350,1736716252859,-723.47,0.00011369,2]
[348687351,1736716252868,-1666.5,0.00011369,2]
[348687352,1736716252878,-810.78,0.00011369,2]
[348687353,1736716252887,-1080.98,0.00011369,2]
[348687354,1736716252896,-1242.49,0.00011369,2]
[348687355,1736716252906,-749.73,0.00011369,2]
[348687356,1736716252915,-1000.0,0.00011369,2]
[348687357,1736716252925,-931.41,0.00011369,2]
[348687358,1736716252935,-500.0,0.00011369,2]
[348687359,1736716252945,-1854.57,0.00011369,2]
[348687360,1736716252954,-1443.21,0.00011369,2]
[348687361,1736716252963,-500.0,0.00011374,2]
[348687362,1736716252973,-1182.0,0.00011374,2]
[348687363,1736716252983,-250.0,0.00011384,2]
[348687364,1736716252992,-500.0,0.00011401,2]
[348687365,1736716253002,-1182.0,0.00011401,2]
[348687366,1736716253012,-420.06559784,0.00011403,2]
[348687367,1736716253021,-437.72,0.00011424,2]
[348687368,1736716253031,-1182.0,0.00011429,2]
[348687369,1736716253041,-500.0,0.00011442,2]
[348687370,1736716253051,-513.59,0.00011442,2]
[348687371,1736716253060,-748.09,0.00011442,2]
[348687372,1736716253071,-535.62,0.00011442,2]
[348687373,1736716253081,-543.19,0.00011442,2]
[348687374,1736716253094,-500.0,0.00011442,2]
[348687375,1736716253326,-239.44473719,0.00011442,2]
[348687376,1736716253338,-500.0,0.00011442,2]
[348687377,1736716253347,-541.06,0.00011442,2]
[348687378,1736716253356,-500.0,0.00011442,2]
[348687379,1736716253366,-526.92,0.00011442,2]
[348687380,1736716253375,-517.06,0.00011442,2]
[348687381,1736716253384,-500.0,0.00011442,2]
[348687382,1736716253393,-500.0,0.00011442,2]
[348687383,1736716253403,-500.0,0.00011442,2]
[348687384,1736716253412,-629.33,0.00011442,2]
[348687385,1736716253421,-682.87,0.00011442,2]
[348687386,1736716253431,-500.0,0.00011442,2]
[348687387,1736716253441,-569.51,0.00011442,2]
[348687388,1736716253450,-500.0,0.00011442,2]
[348687389,1736716253459,-569.68,0.00011442,2]
[348687390,1736716253469,-500.0,0.00011442,2]
[348687391,1736716253478,-591.32,0.00011442,2]
[348687392,1736716253488,-500.0,0.00011442,2]
[348687393,1736716253497,-500.0,0.00011442,2]
[348687394,1736716253507,-646.32,0.00011442,2]
[348687395,1736716253516,-650.32,0.00011442,2]
[348687396,1736716253525,-593.51357,0.00011442,2]
[348687397,1736716253535,-525.84,0.00011442,2]
[348687398,1736716253544,-695.51,0.00011442,2]
[348687399,1736716253553,-584.49,0.00011442,2]
[348687400,1736716253562,-522.659471,0.00011442,2]
[348687401,1736716253571,-636.68,0.00011442,2]
[348687402,1736716253581,-592.13,0.00011442,2]
[348687403,1736716253592,-500.0,0.00011442,2]
[348687404,1736716253601,-2629.02,0.00011442,2]
[348687405,1736716253611,-734.86,0.00011442,2]
[348687406,1736716253621,-575.59,0.00011442,2]
[348687407,1736716253631,-552.75,0.00011442,2]
[348687408,1736716253641,-500.0,0.00011442,2]
[348687409,1736716253650,-727.34,0.00011442,2]
[348687410,1736716253660,-931.75,0.00011442,2]
[348687411,1736716253669,-874.85,0.00011442,2]
[348687412,1736716253678,-500.0,0.00011442,2]
[348687413,1736716253688,-530.37,0.00011442,2]
[348687414,1736716253698,-653.99,0.00011442,2]
[348687415,1736716253707,-517.14,0.00011442,2]
[348687416,1736716253716,-500.0,0.00011442,2]
[348687417,1736716253725,-500.0,0.00011442,2]
[348687418,1736716253735,-902.27,0.00011442,2]
[348687419,1736716253745,-531.57,0.00011442,2]
[348687420,1736716253754,-641.29,0.00011442,2]
[348687421,1736716253764,-500.0,0.00011442,2]
[348687422,1736716253773,-628.58,0.00011442,2]
[348687423,1736716253783,-500.0,0.00011442,2]
[348687424,1736716253793,-765.22,0.00011442,2]
[348687425,1736716253802,-1357.6,0.00011442,2]
[348687426,1736716253811,-1370.1,0.00011442,2]
[348687427,1736716253821,-679.25,0.00011442,2]
[348687428,1736716253831,-859.85,0.00011442,2]
[348687429,1736716253841,-500.0,0.00011442,2]
[348687430,1736716253851,-4148.7,0.00011442,2]
[348687431,1736716253860,-649.21,0.00011442,2]
[348687432,1736716253869,-2868.01,0.00011442,2]
[348687433,1736716253879,-563.27,0.00011442,2]
[348687434,1736716253888,-509.07,0.00011442,2]
[348687435,1736716253898,-500.0,0.00011442,2]
[348687436,1736716253907,-530.97,0.00011442,2]
[348687437,1736716253916,-2824.82,0.00011442,2]
[348687438,1736716253926,-944.81,0.00011442,2]
[348687439,1736716253935,-631.88,0.00011442,2]
[348687440,1736716253945,-764.58,0.00011442,2]
[348687441,1736716253954,-1971.2,0.00011442,2]
[348687442,1736716253964,-560.31,0.00011442,2]
[348687443,1736716253973,-1683.99,0.00011442,2]
[348687444,1736716253982,-513.48,0.00011442,2]
[348687445,1736716253991,-695.93,0.00011442,2]
[348687446,1736716254000,-500.0,0.00011442,2]
[348687447,1736716254009,-600.21,0.00011442,2]
[348687448,1736716254019,-500.0,0.00011442,2]
[348687449,1736716254029,-1241.34,0.00011442,2]
[348687450,1736716254038,-1685.64,0.00011442,2]
[348687451,1736716254048,-720.14,0.00011442,2]
[348687452,1736716254057,-2357.49,0.00011442,2]
[348687453,1736716254067,-872.71,0.00011442,2]
[348687454,1736716254076,-1750.55,0.00011442,2]
[348687455,1736716254085,-1217.62,0.00011442,2]
[348687456,1736716254094,-500.0,0.00011442,2]
[348687457,1736716254103,-732.33,0.00011442,2]
[348687458,1736716254112,-3053.93,0.00011442,2]
[348687459,1736716254121,-559.78,0.00011442,2]
[348687460,1736716254131,-629.63,0.00011442,2]
[348687461,1736716254141,-2033.7,0.00011442,2]
[348687462,1736716254150,-500.0,0.00011442,2]
[348687463,1736716254160,-837.74,0.00011442,2]
[348687464,1736716254169,-1673.88,0.00011442,2]
[348687465,1736716254178,-1213.76,0.00011442,2]
[348687466,1736716254188,-860.74,0.00011442,2]
[348687467,1736716254197,-500.0,0.00011442,2]
[348687468,1736716254206,-500.0,0.00011442,2]
[348687469,1736716254215,-575.88,0.00011442,2]
[348687470,1736716254225,-589.49,0.00011442,2]
[348687471,1736716254234,-500.0,0.00011442,2]
[348687472,1736716254244,-827.31,0.00011442,2]
[348687473,1736716254256,-618.03,0.00011442,2]
[348687474,1736716254265,-813.4,0.00011442,2]
[348687475,1736716254274,-960.13,0.00011442,2]
[348687476,1736716254283,-1213.75,0.00011442,2]
[348687477,1736716254294,-651.11,0.00011442,2]
[348687478,1736716254303,-500.0,0.00011442,2]
[348687479,1736716254312,-2920.31,0.00011442,2]
[348687480,1736716254321,-500.0,0.00011442,2]
[348687481,1736716254331,-1197.65,0.00011442,2]
[348687482,1736716254341,-1171.04,0.00011442,2]
[348687483,1736716254350,-782.75,0.00011442,2]
[348687484,1736716254359,-500.0,0.00011442,2]
[348687485,1736716254370,-539.89,0.00011442,2]
[348687486,1736716254381,-1047.31,0.00011442,2]
[348687487,1736716254393,-770.45,0.00011442,2]
[348687488,1736716254403,-661.09,0.00011442,2]
[348687489,1736716254412,-595.07,0.00011442,2]
[348687490,1736716254423,-634.34,0.00011442,2]
[348687491,1736716254434,-1715.14,0.00011442,2]
[348687492,1736716254445,-727.56,0.00011442,2]
[348687493,1736716254455,-2899.2,0.00011442,2]
[348687494,1736716254464,-500.0,0.00011443,2]
[348687495,1736716254474,-500.0,0.00011443,2]
[348687496,1736716254484,-500.0,0.00011443,2]
[348687497,1736716254494,-500.0,0.00011443,2]
[348687498,1736716254505,-500.0,0.00011443,2]
[348687499,1736716254515,-510.11,0.00011443,2]
[348687500,1736716254525,-306.49429568,0.00011443,2]
[348687501,1736716254535,-500.0,0.00011443,2]
[348687502,1736716254546,-664.54,0.00011443,2]
[348687503,1736716254557,-500.0,0.00011443,2]
[348687504,1736716254568,-500.0,0.00011443,2]
[348687505,1736716254578,-656.47,0.00011443,2]
[348687506,1736716254587,-342.14966296,0.00011443,2]
[348687507,1736716254596,-500.0,0.00011443,2]
[348687508,1736716254606,-500.0,0.00011443,2]
[348687509,1736716254616,-513.94,0.00011443,2]
[348687510,1736716254626,-500.0,0.00011443,2]
[348687511,1736716254637,-586.47,0.00011443,2]
[348687512,1736716254646,-500.0,0.00011443,2]
[348687513,1736716254656,-500.0,0.00011443,2]
[348687514,1736716254665,-232.15242618,0.00011443,2]
[348687515,1736716254677,-549.75,0.00011443,2]
[348687516,1736716254687,-500.0,0.00011443,2]
[348687517,1736716254696,-500.0,0.00011443,2]
[348687518,1736716254706,-500.0,0.00011443,2]
[348687519,1736716254715,-519.01,0.00011443,2]
[348687520,1736716254724,-500.0,0.00011443,2]
[348687521,1736716254733,-500.0,0.00011443,2]
[348687522,1736716254743,-686.15,0.00011443,2]
[348687523,1736716254752,-670.09,0.00011443,2]
[348687524,1736716254761,-753.63,0.00011443,2]
[348687525,1736716254772,-777.83,0.00011443,2]
[348687526,1736716254783,-500.0,0.00011443,2]
[348687527,1736716254794,-500.0,0.00011443,2]
[348687528,1736716254804,-500.0,0.00011443,2]
[348687529,1736716254816,-610.24,0.00011443,2]
[348687530,1736716254827,-500.0,0.00011443,2]
[348687531,1736716254837,-644.42,0.00011443,2]
[348687532,1736716254847,-417.34548573,0.00011443,2]
[348687533,1736716254856,-500.0,0.00011443,2]
[348687534,1736716254866,-635.29,0.00011443,2]
[348687535,1736716254876,-635.42,0.00011443,2]
[348687536,1736716254887,-563.42,0.00011443,2]
[348687537,1736716254896,-500.0,0.00011443,2]
[348687538,1736716254905,-629.34,0.00011443,2]
[348687539,1736716254914,-500.0,0.00011443,2]
[348687540,1736716254923,-500.0,0.00011443,2]
[348687541,1736716254932,-781.14,0.00011443,2]
[348687542,1736716254942,-500.0,0.00011443,2]
[348687543,1736716254951,-749.61,0.00011443,2]
[348687544,1736716254960,-807.51,0.00011443,2]
[348687545,1736716254969,-195.51,0.00011449,2]
[348687546,1736716254978,-391.58,0.00011449,2]
[348687547,1736716254987,-1182.0,0.00011456,2]
[348687548,1736716254996,-1182.0,0.00011483,2]
[348687549,1736716255006,-500.0,0.0001149,2]
[348687550,1736716255015,-1566.34,0.00011499,2]
[348687551,1736716255024,-22123.8878254,0.000115,6]
[348687552,1736716255033,-2751.0,0.00011507,2]
[348687553,1736716255042,-200.0,0.0001151,2]
[348687554,1736716255051,-420.06559784,0.0001151,2]
[348687555,1736716255061,-1182.0,0.00011511,2]
[348687556,1736716255070,-1182.0,0.00011538,2]
[348687557,1736716255079,-179.133704,0.00011548,2]
[348687558,1736716255088,-150.227652,0.00011548,2]
[348687559,1736716255097,-1093.8,0.0001155,2]
[348687560,1736716255106,-1958.5,0.0001155,2]
[348687561,1736716255115,-781.68,0.0001155,2]
[348687562,1736716255124,-781.68,0.0001155,2]
[348687563,1736716255133,-1055.33,0.0001155,2]
[348687564,1736716255142,-1397.19,0.0001155,2]
[348687565,1736716255151,-2921.69,0.0001155,2]
[348687566,1736716255160,-1237.0,0.0001155,2]
[348687567,1736716255170,-1851.39,0.0001155,2]
[348687568,1736716255179,-956.89,0.0001155,2]
[348687569,1736716255188,-1036.48,0.0001155,2]
[348687570,1736716255197,-787.12,0.0001155,2]
[348687571,1736716255206,-1763.84,0.0001155,2]
[348687572,1736716255215,-895.89,0.0001155,2]
[348687573,1736716255224,-910.44,0.0001155,2]
[348687574,1736716255234,-939.06,0.0001155,2]
[348687575,1736716255243,-638.79,0.0001155,2]
[348687576,1736716255255,-1091.78,0.0001155,2]
[348687577,1736716255264,-923.82,0.0001155,2]
[348687578,1736716255273,-1060.51,0.0001155,2]
[348687579,1736716255282,-1338.38,0.0001155,2]
[348687580,1736716255292,-875.07903539,0.00011551,2]
[348687581,1736716255302,-1182.0,0.00011566,2]
[348687582,1736716255311,-166.73794238,0.00011569,2]
[348687583,1736716255322,-1182.0,0.00011593,2]
[348687584,1736716255331,-420.06559784,0.00011617,2]
[348687585,1736716255341,-1182.0,0.0001162,2]
[348687586,1736716255350,-500.0,0.00011621,2]
[348687587,1736716255359,-153.92585718,0.00011624,2]
[348687588,1736716255369,-500.0,0.00011627,2]
[348687589,1736716255378,-1521.5,0.00011642,2]
[348687590,1736716255387,-1421.6,0.00011642,2]
[348687591,1736716255396,-2031.45,0.00011642,2]
[348687592,1736716255405,-3914.3,0.00011642,2]
[348687593,1736716255414,-827.37,0.00011642,2]
[348687594,1736716255423,-581.63768975,0.00011643,2]
[348687595,1736716255432,-634.33,0.00011643,2]
[348687596,1736716255441,-723.47,0.00011643,2]
[348687597,1736716255451,-1666.5,0.00011643,2]
[348687598,1736716255460,-810.78,0.00011643,2]
[348687599,1736716255469,-1080.98,0.00011643,2]
[348687600,1736716255479,-1242.49,0.00011643,2]
[348687601,1736716255488,-749.73,0.00011643,2]
[348687602,1736716255498,-1000.0,0.00011643,2]
[348687603,1736716255507,-931.41,0.00011643,2]
[348687604,1736716255516,-500.0,0.00011643,2]
[348687605,1736716255525,-1854.57,0.00011643,2]
[348687606,1736716255534,-1443.21,0.00011643,2]
[348687607,1736716255544,-1182.0,0.00011648,2]
[348687608,1736716255553,-1182.0,0.00011675,2]
[348687609,1736716255562,-2917.34098,0.00011685,2]
[348687610,1736716255572,-1566.34,0.00011699,2]
[348687611,1736716255582,-101364.35644349,0.000117,2]
[348687612,1736716255592,-1198.0,0.00011703,2]
[348687613,1736716255603,-500.0,0.00011716,2]
[348687614,1736716255613,-513.59,0.00011716,2]
[348687615,1736716255624,-748.09,0.00011716,2]
[348687616,1736716255633,-535.62,0.00011716,2]
[348687617,1736716255644,-543.19,0.00011716,2]
[348687618,1736716255654,-500.0,0.00011716,2]
[348687619,1736716255663,-500.0,0.00011716,2]
[348687620,1736716255673,-541.06,0.00011716,2]
[348687621,1736716255682,-503.85,0.00011716,2]
[348687622,1736716255692,-526.92,0.00011716,2]
[348687623,1736716255702,-517.06,0.00011716,2]
[348687624,1736716255711,-500.0,0.00011716,2]
[348687625,1736716255722,-500.0,0.00011716,2]
[348687626,1736716255735,-500.0,0.00011716,2]
[348687627,1736716255749,-629.33,0.00011716,2]
[348687628,1736716255762,-682.87,0.00011716,2]
[348687629,1736716255774,-500.0,0.00011716,2]
[348687630,1736716255784,-569.51,0.00011716,2]
[348687631,1736716255795,-500.0,0.00011716,2]
[348687632,1736716255807,-569.68,0.00011716,2]
[348687633,1736716255819,-500.0,0.00011716,2]
[348687634,1736716255830,-591.32,0.00011716,2]
[348687635,1736716255843,-500.0,0.00011716,2]
[348687636,1736716255854,-500.0,0.00011716,2]
[348687637,1736716255867,-646.32,0.00011716,2]
[348687638,1736716255879,-650.32,0.00011716,2]
[348687639,1736716255892,-593.51357,0.00011716,2]
[348687640,1736716255903,-525.84,0.00011716,2]
[348687641,1736716255914,-695.51,0.00011716,2]
[348687642,1736716255926,-584.49,0.00011716,2]
[348687643,1736716255936,-522.659471,0.00011716,2]
[348687644,1736716255948,-636.68,0.00011716,2]
[348687645,1736716255961,-592.13,0.00011716,2]
[348687646,1736716255974,-500.0,0.00011716,2]
[348687647,1736716255986,-734.86,0.00011716,2]
[348687648,1736716255998,-2629.02,0.00011716,2]
[348687649,1736716256011,-575.59,0.00011716,2]
[348687650,1736716256023,-552.75,0.00011716,2]
[348687651,1736716256036,-500.0,0.00011716,2]
[348687652,1736716256048,-727.34,0.00011716,2]
[348687653,1736716256059,-931.75,0.00011716,2]
[348687654,1736716256071,-874.85,0.00011716,2]
[348687655,1736716256083,-500.0,0.00011716,2]
[348687656,1736716256096,-530.37,0.00011716,2]
[348687657,1736716256108,-517.14,0.00011716,2]
[348687658,1736716256120,-153.02112741,0.00011716,2]
[348687659,1736716256132,-653.99,0.00011716,2]
[348687660,1736716256143,-500.0,0.00011716,2]
[348687661,1736716256154,-902.27,0.00011716,2]
[348687662,1736716256166,-531.57,0.00011716,2]
[348687663,1736716256180,-641.29,0.00011716,2]
[348687664,1736716256191,-500.0,0.00011716,2]
[348687665,1736716256202,-628.58,0.00011716,2]
[348687666,1736716256213,-500.0,0.00011716,2]
[348687667,1736716256224,-765.22,0.00011716,2]
[348687668,1736716256234,-1357.6,0.00011716,2]
[348687669,1736716256246,-1370.1,0.00011716,2]
[348687670,1736716256258,-679.25,0.00011716,2]
[348687671,1736716256271,-859.85,0.00011716,2]
[348687672,1736716256284,-500.0,0.00011716,2]
[348687673,1736716256295,-4148.7,0.00011716,2]
[348687674,1736716256305,-649.21,0.00011716,2]
[348687675,1736716256315,-2868.01,0.00011716,2]
[348687676,1736716256325,-563.27,0.00011716,2]
[348687677,1736716256337,-509.07,0.00011716,2]
[348687678,1736716256349,-500.0,0.00011716,2]
[348687679,1736716256361,-530.97,0.00011716,2]
[348687680,1736716256373,-2824.82,0.00011716,2]
[348687681,1736716256383,-944.81,0.00011716,2]
[348687682,1736716256393,-631.88,0.00011716,2]
[348687683,1736716256403,-764.58,0.00011716,2]
[348687684,1736716256414,-1971.2,0.00011716,2]
[348687685,1736716256426,-560.31,0.00011716,2]
[348687686,1736716256438,-1683.99,0.00011716,2]
[348687687,1736716256449,-513.48,0.00011716,2]
[348687688,1736716256460,-695.93,0.00011716,2]
[348687689,1736716256471,-500.0,0.00011716,2]
[348687690,1736716256482,-600.21,0.00011716,2]
[348687691,1736716256496,-500.0,0.00011716,2]
[348687692,1736716256508,-1241.34,0.00011716,2]
[348687693,1736716256520,-1685.64,0.00011716,2]
[348687694,1736716256532,-720.14,0.00011716,2]
[348687695,1736716256544,-2357.49,0.00011716,2]
[348687696,1736716256555,-872.71,0.00011716,2]
[348687697,1736716256566,-1217.62,0.00011716,2]
[348687698,1736716256578,-1750.55,0.00011716,2]
[348687699,1736716256590,-500.0,0.00011716,2]
[348687700,1736716256601,-732.33,0.00011716,2]
[348687701,1736716256612,-3053.93,0.00011716,2]
[348687702,1736716256624,-559.78,0.00011716,2]
[348687703,1736716256636,-629.63,0.00011716,2]
[348687704,1736716256648,-2033.7,0.00011716,2]
[348687705,1736716256660,-500.0,0.00011716,2]
[348687706,1736716256670,-837.74,0.00011716,2]
[348687707,1736716256681,-1673.88,0.00011716,2]
[348687708,1736716256691,-1213.76,0.00011716,2]
[348687709,1736716256703,-860.74,0.00011716,2]
[348687710,1736716256715,-500.0,0.00011716,2]
[348687711,1736716256726,-500.0,0.00011716,2]
[348687712,1736716256737,-575.88,0.00011716,2]
[348687713,1736716256747,-589.49,0.00011716,2]
[348687714,1736716256758,-500.0,0.00011716,2]
[348687715,1736716256769,-827.31,0.00011716,2]
[348687716,1736716256780,-618.03,0.00011716,2]
[348687717,1736716256793,-813.4,0.00011716,2]
[348687718,1736716256804,-960.13,0.00011716,2]
[348687719,1736716256815,-1213.75,0.00011716,2]
[348687720,1736716256826,-651.11,0.00011716,2]
[348687721,1736716256837,-500.0,0.00011716,2]
[348687722,1736716256848,-2920.31,0.00011716,2]
[348687723,1736716256859,-500.0,0.00011716,2]
[348687724,1736716256871,-1171.04,0.00011716,2]
[348687725,1736716256882,-1197.65,0.00011716,2]
[348687726,1736716256896,-782.75,0.00011716,2]
[348687727,1736716256907,-500.0,0.00011716,2]
[348687728,1736716256917,-539.89,0.00011716,2]
[348687729,1736716256928,-1047.31,0.00011716,2]
[348687730,1736716256939,-770.45,0.00011716,2]
[348687731,1736716256950,-661.09,0.00011716,2]
[348687732,1736716256962,-595.07,0.00011716,2]
[348687733,1736716256972,-634.34,0.00011716,2]
[348687734,1736716256984,-1715.14,0.00011716,2]
[348687735,1736716256996,-727.56,0.00011716,2]
[348687736,1736716257007,-2899.2,0.00011716,2]
[348687737,1736716257017,-500.0,0.00011717,2]
[348687738,1736716257028,-500.0,0.00011717,2]
[348687739,1736716257039,-500.0,0.00011717,2]
[348687740,1736716257050,-500.0,0.00011717,2]
[348687741,1736716257063,-500.0,0.00011717,2]
[348687742,1736716257074,-510.11,0.00011717,2]
[348687743,1736716257086,-500.0,0.00011717,2]
[348687744,1736716257097,-664.54,0.00011717,2]
[348687745,1736716257108,-500.0,0.00011717,2]
[348687746,1736716257119,-500.0,0.00011717,2]
[348687747,1736716257132,-656.47,0.00011717,2]
[348687748,1736716257142,-500.0,0.00011717,2]
[348687749,1736716257153,-500.0,0.00011717,2]
[348687750,1736716257167,-513.94,0.00011717,2]
[348687751,1736716257178,-500.0,0.00011717,2]
[348687752,1736716257188,-586.47,0.00011717,2]
[348687753,1736716257199,-500.0,0.00011717,2]
[348687754,1736716257209,-500.0,0.00011717,2]
[348687755,1736716257221,-549.75,0.00011717,2]
[348687756,1736716257232,-500.0,0.00011717,2]
[348687757,1736716257244,-500.0,0.00011717,2]
[348687758,1736716257256,-500.0,0.00011717,2]
[348687759,1736716257267,-519.01,0.00011717,2]
[348687760,1736716257281,-500.0,0.00011717,2]
[348687761,1736716257294,-500.0,0.00011717,2]
[348687762,1736716257305,-686.15,0.00011717,2]
[348687763,1736716257315,-670.09,0.00011717,2]
[348687764,1736716257328,-753.63,0.00011717,2]
[348687765,1736716257339,-777.83,0.00011717,2]
[348687766,1736716257349,-500.0,0.00011717,2]
[348687767,1736716257360,-500.0,0.00011717,2]
[348687768,1736716257370,-500.0,0.00011717,2]
[348687769,1736716257380,-610.24,0.00011717,2]
[348687770,1736716257390,-500.0,0.00011717,2]
[348687771,1736716257401,-644.42,0.00011717,2]
[348687772,1736716257411,-500.0,0.00011717,2]
[348687773,1736716257423,-635.29,0.00011717,2]
[348687774,1736716257435,-635.42,0.00011717,2]
[348687775,1736716257446,-563.42,0.00011717,2]
[348687776,1736716257456,-500.0,0.00011717,2]
[348687777,1736716257467,-629.34,0.00011717,2]
[348687778,1736716257478,-500.0,0.00011717,2]
[348687779,1736716257492,-500.0,0.00011717,2]
[348687780,1736716257503,-781.14,0.00011717,2]
[348687781,1736716257514,-500.0,0.00011717,2]
[348687782,1736716257525,-749.61,0.00011717,2]
[348687783,1736716257536,-807.51,0.00011717,2]
[348687784,1736716257547,-420.06559784,0.00011724,2]
[348687785,1736716257560,-500.0,0.00011764,2]
[348687786,1736716257571,-875.07903539,0.00011767,2]
[348687787,1736716257582,-150.0,0.00011796,2]
[348687788,1736716257594,-1093.8,0.00011824,2]
[348687789,1736716257604,-1958.5,0.00011824,2]
[348687790,1736716257614,-925.34,0.00011824,2]
[348687791,1736716257626,-781.68,0.00011824,2]
[348687792,1736716257637,-781.68,0.00011824,2]
[348687793,1736716257648,-1055.33,0.00011824,2]
[348687794,1736716257658,-1397.19,0.00011824,2]
[348687795,1736716257669,-2921.69,0.00011824,2]
[348687796,1736716257679,-1237.0,0.00011824,2]
[348687797,1736716257690,-1851.39,0.00011824,2]
[348687798,1736716257700,-956.89,0.00011824,2]
[348687799,1736716257710,-1036.48,0.00011824,2]
[348687800,1736716257721,-787.12,0.00011824,2]
[348687801,1736716257731,-1763.84,0.00011824,2]
[348687802,1736716257742,-895.89,0.00011824,2]
[348687803,1736716257752,-910.44,0.00011824,2]
[348687804,1736716257763,-939.06,0.00011824,2]
[348687805,1736716257773,-638.79,0.00011824,2]
[348687806,1736716257783,-1091.78,0.00011824,2]
[348687807,1736716257794,-923.82,0.00011824,2]
[348687808,1736716257804,-1060.51,0.00011824,2]
[348687809,1736716257815,-1338.38,0.00011824,2]
[348687810,1736716257825,-420.06559784,0.00011831,2]
[348687811,1736716257835,-433.0,0.00011856,2]
[348687812,1736716257846,-166.73794238,0.00011881,2]
[348687813,1736716257856,-1020.03657658,0.00011881,2]
[348687814,1736716257867,-448.56869847,0.0001189,2]
[348687815,1736716257877,-1566.34,0.00011899,2]
[348687816,1736716257887,-1000.0,0.00011899,2]
[348687817,1736716257897,-3392.0,0.000119,2]
[348687818,1736716257908,-5000.0,0.000119,2]
[348687819,1736716257918,-153.92585718,0.000119,2]
[348687820,1736716257928,-500.0,0.00011901,2]
[348687821,1736716257938,-1566.34,0.00011914,2]
[348687822,1736716257948,-1521.5,0.00011916,2]
[348687823,1736716257958,-1421.6,0.00011916,2]
[348687824,1736716257968,-2031.45,0.00011916,2]
[348687825,1736716257978,-3914.3,0.00011916,2]
[348687826,1736716257988,-827.37,0.00011916,2]
[348687827,1736716257998,-634.33,0.00011917,2]
[348687828,1736716258008,-723.47,0.00011917,2]
[348687829,1736716258019,-1666.5,0.00011917,2]
[348687830,1736716258029,-810.78,0.00011917,2]
[348687831,1736716258039,-1080.98,0.00011917,2]
[348687832,1736716258050,-1242.49,0.00011917,2]
[348687833,1736716258060,-749.73,0.00011917,2]
[348687834,1736716258070,-643.75287929,0.00011917,2]
[348687835,1736716258081,-931.41,0.00011917,2]
[348687836,1736716258092,-500.0,0.00011917,2]
[348687837,1736716258103,-1854.57,0.00011917,2]
[348687838,1736716258113,-1443.21,0.00011917,2]
[348687839,1736716258124,-420.06559784,0.00011938,2]
[348687840,1736716258134,-500.0,0.00011981,2]
[348687841,1736716258145,-500.0,0.00011981,2]
[348687842,1736716258156,-500.0,0.00011981,2]
[348687843,1736716258166,-500.0,0.00011981,2]
[348687844,1736716258177,-500.0,0.00011981,2]